[Event "Titled Tuesday Blitz May 16 Early 2023"]
[White "Kramnik, Vladimir"]
[Black "Postny, Evgeny"]
[WhiteFideId "4101588"]
[BlackFideId "2804344"]
[WhiteElo "2703"]
[BlackElo "2504"]
[Result "0-1"]
[Round "09"]
[TimeControl "180+2"]
[Date "2023.05.16"]
[WhiteClock "0:00:00"]
[BlackClock "0:00:02"]

1. c4 {[%clk 0:03:00]}  Nf6 {[%clk 0:02:56]} 2. Nc3 {[%clk 0:03:00]}  e5 {[%clk 0:02:51]} 3. Nf3 {[%clk 0:03:00]}  Nc6 {[%clk 0:02:51]} 4. g3 {[%clk 0:03:01]}  g6 {[%clk 0:02:49]} 5. Bg2 {[%clk 0:02:59]}  Bg7 {[%clk 0:02:50]} 6. O-O {[%clk 0:03:00]}  O-O {[%clk 0:02:50]} 7. d3 {[%clk 0:02:59]}  d6 {[%clk 0:02:49]} 8. b3 {[%clk 0:02:59]}  Nd7 {[%clk 0:02:38]} 9. Bb2 {[%clk 0:02:57]}  Nc5 {[%clk 0:02:39]} 10. a3 {[%clk 0:02:43]}  a5 {[%clk 0:02:37]} 11. e3 {[%clk 0:02:39]}  Bf5 {[%clk 0:02:35]} 12. Ne1 {[%clk 0:02:38]}  Qc8 {[%clk 0:02:14]} 13. Nd5 {[%clk 0:02:38]}  Re8 {[%clk 0:02:02]} 14. b4 {[%clk 0:02:36]}  axb4 {[%clk 0:01:52]} 15. axb4 {[%clk 0:02:36]}  Rxa1 {[%clk 0:01:53]} 16. Bxa1 {[%clk 0:02:36]}  Nd7 {[%clk 0:01:50]} 17. Nc2 {[%clk 0:02:30]}  Ne7 {[%clk 0:01:46]} 18. e4 {[%clk 0:02:24]}  Be6 {[%clk 0:01:42]} 19. Qd2 {[%clk 0:02:17]}  Nf6 {[%clk 0:01:31]} 20. Nxe7+ {[%clk 0:02:03]}  Rxe7 {[%clk 0:01:31]} 21. Bc3 {[%clk 0:02:00]}  Nh5 {[%clk 0:01:18]} 22. Ne3 {[%clk 0:01:53]}  c6 {[%clk 0:01:14]} 23. Ra1 {[%clk 0:01:53]}  Re8 {[%clk 0:01:10]} 24. c5 {[%clk 0:01:49]}  dxc5 {[%clk 0:01:06]} 25. bxc5 {[%clk 0:01:49]}  Bh3 {[%clk 0:01:04]} 26. Nc4 {[%clk 0:01:32]}  Bxg2 {[%clk 0:01:03]} 27. Kxg2 {[%clk 0:01:32]}  Rd8 {[%clk 0:00:36]} 28. Bxe5 {[%clk 0:01:24]}  Bxe5 {[%clk 0:00:29]} 29. Nxe5 {[%clk 0:01:24]}  Qe6 {[%clk 0:00:30]} 30. Nf3 {[%clk 0:01:03]}  Nf6 {[%clk 0:00:24]} 31. Qe3 {[%clk 0:00:58]}  Qb3 {[%clk 0:00:21]} 32. Qg5 {[%clk 0:00:57]}  Qb2 {[%clk 0:00:14]} 33. Rd1 {[%clk 0:00:44]}  h6 {[%clk 0:00:12]} 34. Qxh6 {[%clk 0:00:31]}  Qxf2+ {[%clk 0:00:07]} 35. Kxf2 {[%clk 0:00:30]}  Ng4+ {[%clk 0:00:07]} 36. Ke2 {[%clk 0:00:30]}  Nxh6 {[%clk 0:00:08]} 37. Rb1 {[%clk 0:00:30]}  Rd7 {[%clk 0:00:05]} 38. h3 {[%clk 0:00:27]}  f5 {[%clk 0:00:05]} 39. e5 {[%clk 0:00:25]}  Nf7 {[%clk 0:00:02]} 40. Ke3 {[%clk 0:00:21]}  Nd8 {[%clk 0:00:02]} 41. Ng5 {[%clk 0:00:20]}  Rd5 {[%clk 0:00:02]} 42. d4 {[%clk 0:00:20]}  Rd7 {[%clk 0:00:02]} 43. g4 {[%clk 0:00:19]}  Kg7 {[%clk 0:00:02]} 44. gxf5 {[%clk 0:00:19]}  gxf5 {[%clk 0:00:03]} 45. h4 {[%clk 0:00:18]}  Kg6 {[%clk 0:00:03]} 46. Rg1 {[%clk 0:00:17]}  Kh5 {[%clk 0:00:03]} 47. Kf4 {[%clk 0:00:14]}  Rxd4+ {[%clk 0:00:03]} 48. Kxf5 {[%clk 0:00:14]}  Rxh4 {[%clk 0:00:03]} 49. Ne4 {[%clk 0:00:13]}  Rh2 {[%clk 0:00:03]} 50. Nf6+ {[%clk 0:00:12]}  Kh4 {[%clk 0:00:02]} 51. Rg4+ {[%clk 0:00:11]}  Kh3 {[%clk 0:00:03]} 52. Rd4 {[%clk 0:00:08]}  Rf2+ {[%clk 0:00:03]} 53. Kg6 {[%clk 0:00:07]}  Ne6 {[%clk 0:00:02]} 54. Rc4 {[%clk 0:00:07]}  Nf4+ {[%clk 0:00:02]} 55. Kf7 {[%clk 0:00:06]}  Nd5 {[%clk 0:00:02]} 56. Ke6 {[%clk 0:00:05]}  Nc7+ {[%clk 0:00:02]} 57. Kd7 {[%clk 0:00:05]}  Nb5 {[%clk 0:00:02]} 58. Ne4 {[%clk 0:00:04]}  Re2 {[%clk 0:00:01]} 59. e6 {[%clk 0:00:04]}  Re3 {[%clk 0:00:01]} 60. e7 {[%clk 0:00:04]}  Rd3+ {[%clk 0:00:01]} 61. Nd6 {[%clk 0:00:04]}  Re3 {[%clk 0:00:01]} 62. e8=Q {[%clk 0:00:04]}  Rxe8 {[%clk 0:00:01]} 63. Kxe8 {[%clk 0:00:00]}  Nc7+ {[%clk 0:00:02]} 0-1


[Site "https://www.chess.com"]

[Event "Titled Tuesday Blitz May 16 Early 2023"]
[White "Papasimakopoulos, Alexandros"]
[Black "Petrosyan, Manuel"]
[WhiteFideId "4244125"]
[BlackFideId "13300857"]
[WhiteElo "2359"]
[BlackElo "2576"]
[Result "1-0"]
[Round "09"]
[TimeControl "180+2"]
[Date "2023.05.16"]
[WhiteClock "0:00:29"]
[BlackClock "0:00:00"]

1. d4 {[%clk 0:03:00]}  Nf6 {[%clk 0:02:59]} 2. c4 {[%clk 0:02:56]}  e6 {[%clk 0:02:59]} 3. Nc3 {[%clk 0:02:52]}  Bb4 {[%clk 0:02:58]} 4. Qc2 {[%clk 0:02:52]}  d5 {[%clk 0:02:57]} 5. cxd5 {[%clk 0:02:52]}  Qxd5 {[%clk 0:02:57]} 6. Nf3 {[%clk 0:02:52]}  Qf5 {[%clk 0:02:56]} 7. Qxf5 {[%clk 0:02:52]}  exf5 {[%clk 0:02:56]} 8. a3 {[%clk 0:02:52]}  Bd6 {[%clk 0:02:48]} 9. Nb5 {[%clk 0:02:53]}  Be6 {[%clk 0:02:37]} 10. Nxd6+ {[%clk 0:02:50]}  cxd6 {[%clk 0:02:37]} 11. Bf4 {[%clk 0:02:51]}  Kd7 {[%clk 0:02:30]} 12. e3 {[%clk 0:02:50]}  Nc6 {[%clk 0:02:29]} 13. Bd3 {[%clk 0:02:50]}  g6 {[%clk 0:02:19]} 14. h3 {[%clk 0:02:43]}  Rac8 {[%clk 0:02:18]} 15. Nd2 {[%clk 0:02:36]}  a6 {[%clk 0:02:12]} 16. O-O {[%clk 0:02:26]}  Na5 {[%clk 0:02:11]} 17. Bg5 {[%clk 0:02:18]}  Nd5 {[%clk 0:01:59]} 18. Rfc1 {[%clk 0:02:16]}  Nb6 {[%clk 0:01:31]} 19. Kf1 {[%clk 0:02:00]}  Nbc4 {[%clk 0:01:00]} 20. Nxc4 {[%clk 0:01:57]}  Bxc4 {[%clk 0:01:00]} 21. Bxc4 {[%clk 0:01:56]}  Nxc4 {[%clk 0:00:56]} 22. b4 {[%clk 0:01:20]}  b5 {[%clk 0:00:46]} 23. Ke2 {[%clk 0:01:16]}  Nb6 {[%clk 0:00:44]} 24. f3 {[%clk 0:01:09]}  Rxc1 {[%clk 0:00:33]} 25. Rxc1 {[%clk 0:01:10]}  Rc8 {[%clk 0:00:33]} 26. Rxc8 {[%clk 0:01:10]}  Kxc8 {[%clk 0:00:31]} 27. e4 {[%clk 0:01:11]}  fxe4 {[%clk 0:00:30]} 28. fxe4 {[%clk 0:01:11]}  d5 {[%clk 0:00:26]} 29. exd5 {[%clk 0:01:08]}  Kd7 {[%clk 0:00:23]} 30. Kd3 {[%clk 0:00:57]}  Nxd5 {[%clk 0:00:22]} 31. Ke4 {[%clk 0:00:51]}  Ke6 {[%clk 0:00:21]} 32. Bd2 {[%clk 0:00:51]}  Nb6 {[%clk 0:00:17]} 33. Bc1 {[%clk 0:00:49]}  h5 {[%clk 0:00:12]} 34. Bd2 {[%clk 0:00:43]}  f6 {[%clk 0:00:12]} 35. h4 {[%clk 0:00:41]}  Nd5 {[%clk 0:00:12]} 36. g3 {[%clk 0:00:40]}  Nb6 {[%clk 0:00:11]} 37. Bc1 {[%clk 0:00:40]}  Nc4 {[%clk 0:00:12]} 38. d5+ {[%clk 0:00:38]}  Ke7 {[%clk 0:00:10]} 39. Kd4 {[%clk 0:00:38]}  Nd6 {[%clk 0:00:04]} 40. Kc5 {[%clk 0:00:33]}  Ne4+ {[%clk 0:00:03]} 41. Kc6 {[%clk 0:00:34]}  Nxg3 {[%clk 0:00:00]} 42. d6+ {[%clk 0:00:29]} 1-0


[Site "https://www.chess.com"]

[Event "Titled Tuesday Blitz May 16 Early 2023"]
[White "MKlose11"]
[Black "Bacrot, Etienne"]
[BlackFideId "605506"]
[WhiteElo "2679"]
[BlackElo "2672"]
[Result "0-1"]
[Round "09"]
[TimeControl "180+2"]
[Date "2023.05.16"]
[WhiteClock "0:00:12"]
[BlackClock "0:00:58"]

1. e4 {[%clk 0:03:00]}  c5 {[%clk 0:02:59]} 2. Nc3 {[%clk 0:03:00]}  Nc6 {[%clk 0:02:59]} 3. g3 {[%clk 0:03:00]}  g6 {[%clk 0:02:59]} 4. d3 {[%clk 0:03:00]}  Bg7 {[%clk 0:03:00]} 5. Bg2 {[%clk 0:02:59]}  d6 {[%clk 0:03:00]} 6. f4 {[%clk 0:02:58]}  f5 {[%clk 0:03:01]} 7. Nf3 {[%clk 0:02:55]}  Nf6 {[%clk 0:03:01]} 8. O-O {[%clk 0:02:54]}  O-O {[%clk 0:03:01]} 9. Be3 {[%clk 0:02:49]}  Ng4 {[%clk 0:03:00]} 10. Bd2 {[%clk 0:02:48]}  Qb6 {[%clk 0:02:54]} 11. Na4 {[%clk 0:02:24]}  Qa6 {[%clk 0:02:48]} 12. Nc3 {[%clk 0:02:24]}  c4 {[%clk 0:02:48]} 13. Qe2 {[%clk 0:02:07]}  cxd3 {[%clk 0:02:34]} 14. cxd3 {[%clk 0:02:06]}  fxe4 {[%clk 0:01:47]} 15. dxe4 {[%clk 0:01:23]}  Qxe2 {[%clk 0:01:34]} 16. Nxe2 {[%clk 0:01:24]}  Bxb2 {[%clk 0:01:34]} 17. Rab1 {[%clk 0:01:24]}  Ba3 {[%clk 0:01:32]} 18. Rfd1 {[%clk 0:01:07]}  Bc5+ {[%clk 0:01:27]} 19. Kf1 {[%clk 0:01:07]}  b6 {[%clk 0:01:26]} 20. Rdc1 {[%clk 0:00:47]}  Ba6 {[%clk 0:01:26]} 21. Ke1 {[%clk 0:00:36]}  Rac8 {[%clk 0:01:24]} 22. h3 {[%clk 0:00:36]}  Nf2 {[%clk 0:01:24]} 23. Rxc5 {[%clk 0:00:19]}  Nd3+ {[%clk 0:01:23]} 24. Kd1 {[%clk 0:00:20]}  dxc5 {[%clk 0:01:14]} 25. Ng5 {[%clk 0:00:18]}  Rfd8 {[%clk 0:01:02]} 26. Ne6 {[%clk 0:00:15]}  Rd6 {[%clk 0:01:02]} 27. e5 {[%clk 0:00:16]}  Rxe6 {[%clk 0:01:00]} 28. Bd5 {[%clk 0:00:16]}  Kf7 {[%clk 0:01:00]} 29. g4 {[%clk 0:00:16]}  Rd8 {[%clk 0:00:59]} 30. Bxe6+ {[%clk 0:00:15]}  Kxe6 {[%clk 0:00:59]} 31. Ng3 {[%clk 0:00:12]}  Nxf4 {[%clk 0:00:58]} 0-1


[Site "https://www.chess.com"]

[Event "Titled Tuesday Blitz May 16 Early 2023"]
[White "Zherebukh, Yaroslav"]
[Black "Asavasaetakul, Chawit"]
[WhiteFideId "14116804"]
[BlackFideId "6204856"]
[WhiteElo "2531"]
[BlackElo "1919"]
[Result "1-0"]
[Round "09"]
[TimeControl "180+2"]
[Date "2023.05.16"]
[WhiteClock "0:00:03"]
[BlackClock "0:00:05"]

1. d4 {[%clk 0:03:00]}  d5 {[%clk 0:02:58]} 2. c4 {[%clk 0:03:00]}  c6 {[%clk 0:02:59]} 3. Nc3 {[%clk 0:03:00]}  Nf6 {[%clk 0:02:59]} 4. Nf3 {[%clk 0:03:00]}  dxc4 {[%clk 0:02:59]} 5. e4 {[%clk 0:03:00]}  b5 {[%clk 0:02:59]} 6. Be2 {[%clk 0:03:00]}  e6 {[%clk 0:02:56]} 7. O-O {[%clk 0:03:00]}  Be7 {[%clk 0:02:57]} 8. Qc2 {[%clk 0:02:57]}  O-O {[%clk 0:02:56]} 9. b3 {[%clk 0:02:54]}  cxb3 {[%clk 0:02:54]} 10. axb3 {[%clk 0:02:55]}  Bb7 {[%clk 0:02:54]} 11. e5 {[%clk 0:02:55]}  Nd5 {[%clk 0:02:48]} 12. Ne4 {[%clk 0:02:53]}  h6 {[%clk 0:02:45]} 13. h4 {[%clk 0:02:34]}  Nd7 {[%clk 0:02:42]} 14. h5 {[%clk 0:02:11]}  a6 {[%clk 0:02:41]} 15. Ba3 {[%clk 0:01:58]}  Rc8 {[%clk 0:02:38]} 16. Bxe7 {[%clk 0:01:57]}  Qxe7 {[%clk 0:02:38]} 17. Nd6 {[%clk 0:01:58]}  Rc7 {[%clk 0:02:35]} 18. Qe4 {[%clk 0:01:53]}  c5 {[%clk 0:02:13]} 19. Nxb7 {[%clk 0:01:48]}  Rxb7 {[%clk 0:02:12]} 20. Rxa6 {[%clk 0:01:49]}  cxd4 {[%clk 0:02:05]} 21. Qxd4 {[%clk 0:01:28]}  Nc5 {[%clk 0:02:00]} 22. Rd6 {[%clk 0:01:15]}  Nxb3 {[%clk 0:01:46]} 23. Qg4 {[%clk 0:01:13]}  Nc5 {[%clk 0:01:38]} 24. Rc1 {[%clk 0:01:08]}  Nd7 {[%clk 0:01:33]} 25. Rdc6 {[%clk 0:01:01]}  b4 {[%clk 0:01:31]} 26. Bd3 {[%clk 0:01:01]}  b3 {[%clk 0:01:18]} 27. Qe4 {[%clk 0:01:00]}  f5 {[%clk 0:01:19]} 28. exf6 {[%clk 0:00:59]}  N7xf6 {[%clk 0:01:19]} 29. Qe5 {[%clk 0:00:33]}  Nb4 {[%clk 0:01:12]} 30. Rxe6 {[%clk 0:00:17]}  b2 {[%clk 0:00:51]} 31. Rb1 {[%clk 0:00:14]}  Qc7 {[%clk 0:00:39]} 32. Bg6 {[%clk 0:00:08]}  Qc1+ {[%clk 0:00:32]} 33. Qe1 {[%clk 0:00:08]}  Qxe1+ {[%clk 0:00:23]} 34. Rexe1 {[%clk 0:00:09]}  Na2 {[%clk 0:00:23]} 35. Re2 {[%clk 0:00:09]}  Rfb8 {[%clk 0:00:22]} 36. Rc2 {[%clk 0:00:09]}  Rb3 {[%clk 0:00:21]} 37. Nd4 {[%clk 0:00:08]}  R3b6 {[%clk 0:00:18]} 38. Nc6 {[%clk 0:00:08]}  R8b7 {[%clk 0:00:17]} 39. Na5 {[%clk 0:00:06]}  Rb8 {[%clk 0:00:17]} 40. Nc4 {[%clk 0:00:06]}  Rb4 {[%clk 0:00:16]} 41. Rcxb2 {[%clk 0:00:06]}  Rxb2 {[%clk 0:00:16]} 42. Rxb2 {[%clk 0:00:07]}  Rxb2 {[%clk 0:00:17]} 43. Nxb2 {[%clk 0:00:07]}  Nc3 {[%clk 0:00:18]} 44. Nd3 {[%clk 0:00:07]}  Ne2+ {[%clk 0:00:18]} 45. Kf1 {[%clk 0:00:07]}  Nd4 {[%clk 0:00:18]} 46. Nf4 {[%clk 0:00:07]}  Kf8 {[%clk 0:00:18]} 47. f3 {[%clk 0:00:07]}  Ke7 {[%clk 0:00:18]} 48. Kf2 {[%clk 0:00:07]}  Kd6 {[%clk 0:00:18]} 49. g4 {[%clk 0:00:08]}  Ke5 {[%clk 0:00:18]} 50. Nd3+ {[%clk 0:00:08]}  Kd6 {[%clk 0:00:18]} 51. Nf4 {[%clk 0:00:07]}  Ke5 {[%clk 0:00:18]} 52. Kg3 {[%clk 0:00:06]}  Ne6 {[%clk 0:00:17]} 53. Nd3+ {[%clk 0:00:05]}  Kd6 {[%clk 0:00:17]} 54. Bf5 {[%clk 0:00:05]}  Nd4 {[%clk 0:00:17]} 55. Bg6 {[%clk 0:00:06]}  Ne6 {[%clk 0:00:17]} 56. Kf2 {[%clk 0:00:04]}  Nc5 {[%clk 0:00:14]} 57. Nf4 {[%clk 0:00:04]}  Ke5 {[%clk 0:00:15]} 58. Ne2 {[%clk 0:00:04]}  Ne6 {[%clk 0:00:14]} 59. Kg3 {[%clk 0:00:04]}  Nd5 {[%clk 0:00:12]} 60. Bf7 {[%clk 0:00:03]}  Nef4 {[%clk 0:00:07]} 61. Nc1 {[%clk 0:00:03]}  Nf6 {[%clk 0:00:06]} 62. Nb3 {[%clk 0:00:03]}  Ne2+ {[%clk 0:00:04]} 63. Kf2 {[%clk 0:00:03]}  Nf4 {[%clk 0:00:05]} 64. Nd2 {[%clk 0:00:04]}  Nd3+ {[%clk 0:00:05]} 65. Ke3 {[%clk 0:00:04]}  Nc5 {[%clk 0:00:05]} 66. Nc4# {[%clk 0:00:03]} 1-0


[Site "https://www.chess.com"]

[Event "Titled Tuesday Blitz May 16 Early 2023"]
[White "Averjanov, Alexey"]
[Black "Tasev, Dejan"]
[WhiteFideId "14109867"]
[BlackFideId "936618"]
[WhiteElo "2806"]
[BlackElo "2244"]
[Result "1-0"]
[Round "09"]
[TimeControl "180+2"]
[Date "2023.05.16"]
[WhiteClock "0:00:38"]
[BlackClock "0:00:04"]

1. d4 {[%clk 0:03:00]}  Nf6 {[%clk 0:02:59]} 2. c4 {[%clk 0:03:01]}  g6 {[%clk 0:02:59]} 3. Nc3 {[%clk 0:03:00]}  Bg7 {[%clk 0:02:59]} 4. e4 {[%clk 0:03:00]}  d6 {[%clk 0:03:00]} 5. Be2 {[%clk 0:03:01]}  O-O {[%clk 0:03:00]} 6. Nf3 {[%clk 0:03:01]}  e5 {[%clk 0:03:00]} 7. O-O {[%clk 0:03:02]}  Nc6 {[%clk 0:03:00]} 8. d5 {[%clk 0:03:02]}  Ne7 {[%clk 0:03:01]} 9. Ne1 {[%clk 0:03:03]}  Ne8 {[%clk 0:03:01]} 10. Be3 {[%clk 0:03:03]}  f5 {[%clk 0:03:01]} 11. f3 {[%clk 0:03:04]}  f4 {[%clk 0:03:02]} 12. Bf2 {[%clk 0:03:04]}  g5 {[%clk 0:03:02]} 13. c5 {[%clk 0:03:04]}  Ng6 {[%clk 0:03:02]} 14. a4 {[%clk 0:03:04]}  Rf7 {[%clk 0:03:02]} 15. a5 {[%clk 0:03:05]}  Bf8 {[%clk 0:03:02]} 16. cxd6 {[%clk 0:03:04]}  cxd6 {[%clk 0:03:02]} 17. Nb5 {[%clk 0:03:00]}  a6 {[%clk 0:02:58]} 18. Na3 {[%clk 0:03:00]}  h5 {[%clk 0:02:58]} 19. Nc4 {[%clk 0:03:00]}  Nf6 {[%clk 0:02:55]} 20. Nb6 {[%clk 0:03:00]}  Rb8 {[%clk 0:02:55]} 21. Rc1 {[%clk 0:03:00]}  g4 {[%clk 0:02:51]} 22. Nxc8 {[%clk 0:02:40]}  Rxc8 {[%clk 0:02:49]} 23. Bb6 {[%clk 0:02:38]}  Qe8 {[%clk 0:02:41]} 24. Rxc8 {[%clk 0:02:33]}  Qxc8 {[%clk 0:02:41]} 25. Qc2 {[%clk 0:02:32]}  Qd7 {[%clk 0:02:33]} 26. Nd3 {[%clk 0:02:26]}  Rg7 {[%clk 0:02:33]} 27. Rc1 {[%clk 0:02:20]}  gxf3 {[%clk 0:02:33]} 28. Bxf3 {[%clk 0:02:18]}  Nh4 {[%clk 0:02:32]} 29. Ne1 {[%clk 0:02:16]}  Nxf3+ {[%clk 0:02:15]} 30. Nxf3 {[%clk 0:02:13]}  Qg4 {[%clk 0:02:13]} 31. Kh1 {[%clk 0:01:13]}  Nxe4 {[%clk 0:01:55]} 32. Nxe5 {[%clk 0:01:10]}  Qf5 {[%clk 0:00:48]} 33. Nf3 {[%clk 0:01:05]}  Qxd5 {[%clk 0:00:38]} 34. Rd1 {[%clk 0:00:59]}  Qf5 {[%clk 0:00:34]} 35. Qc4+ {[%clk 0:00:57]}  Kh8 {[%clk 0:00:29]} 36. Bd4 {[%clk 0:00:52]}  Kh7 {[%clk 0:00:26]} 37. Bxg7 {[%clk 0:00:42]}  Nf2+ {[%clk 0:00:26]} 38. Kg1 {[%clk 0:00:42]}  Nxd1 {[%clk 0:00:26]} 39. Bxf8 {[%clk 0:00:39]}  Qxf8 {[%clk 0:00:19]} 40. Qd3+ {[%clk 0:00:39]}  Kh6 {[%clk 0:00:04]} 41. Qxd1 {[%clk 0:00:38]} 1-0


[Site "https://www.chess.com"]

[Event "Titled Tuesday Blitz May 16 Early 2023"]
[White "Kubicka, Anna"]
[Black "Ter-Sahakyan, Samvel"]
[WhiteFideId "1152254"]
[BlackFideId "13302531"]
[WhiteElo "2144"]
[BlackElo "2545"]
[Result "0-1"]
[Round "09"]
[TimeControl "180+2"]
[Date "2023.05.16"]
[WhiteClock "0:00:00"]
[BlackClock "0:01:42"]

1. e4 {[%clk 0:03:00]}  c5 {[%clk 0:02:59]} 2. Ne2 {[%clk 0:02:59]}  Nc6 {[%clk 0:02:55]} 3. g3 {[%clk 0:02:59]}  d5 {[%clk 0:02:54]} 4. Bg2 {[%clk 0:02:58]}  dxe4 {[%clk 0:02:54]} 5. Nec3 {[%clk 0:02:58]}  Nf6 {[%clk 0:02:53]} 6. Nxe4 {[%clk 0:02:56]}  Nxe4 {[%clk 0:02:52]} 7. Bxe4 {[%clk 0:02:57]}  g6 {[%clk 0:02:49]} 8. O-O {[%clk 0:02:55]}  Bg7 {[%clk 0:02:49]} 9. Nc3 {[%clk 0:02:52]}  Bh3 {[%clk 0:02:46]} 10. Bg2 {[%clk 0:02:49]}  Bxg2 {[%clk 0:02:45]} 11. Kxg2 {[%clk 0:02:49]}  h5 {[%clk 0:02:43]} 12. h3 {[%clk 0:02:45]}  Nd4 {[%clk 0:02:31]} 13. d3 {[%clk 0:02:36]}  Qd7 {[%clk 0:02:31]} 14. Be3 {[%clk 0:02:29]}  Qc6+ {[%clk 0:02:31]} 15. f3 {[%clk 0:02:28]}  Rc8 {[%clk 0:02:27]} 16. Ne4 {[%clk 0:02:10]}  O-O {[%clk 0:02:22]} 17. c3 {[%clk 0:01:48]}  Ne6 {[%clk 0:02:22]} 18. Qe2 {[%clk 0:01:42]}  Rfd8 {[%clk 0:02:22]} 19. Rad1 {[%clk 0:01:43]}  b5 {[%clk 0:02:19]} 20. Kh2 {[%clk 0:01:24]}  a5 {[%clk 0:02:18]} 21. f4 {[%clk 0:01:23]}  Rd5 {[%clk 0:02:12]} 22. Nd2 {[%clk 0:01:07]}  Rcd8 {[%clk 0:02:08]} 23. Nf3 {[%clk 0:01:06]}  b4 {[%clk 0:02:05]} 24. c4 {[%clk 0:00:57]}  R5d6 {[%clk 0:02:03]} 25. Ne5 {[%clk 0:00:54]}  Bxe5 {[%clk 0:01:54]} 26. fxe5 {[%clk 0:00:54]}  R6d7 {[%clk 0:01:50]} 27. Bg1 {[%clk 0:00:16]}  Nd4 {[%clk 0:01:49]} 28. Qf2 {[%clk 0:00:12]}  Qe6 {[%clk 0:01:48]} 29. Rde1 {[%clk 0:00:05]}  Nf5 {[%clk 0:01:44]} 30. Qxc5 {[%clk 0:00:04]}  Rxd3 {[%clk 0:01:44]} 31. Re2 {[%clk 0:00:04]}  Nxg3 {[%clk 0:01:43]} 32. Ref2 {[%clk 0:00:00]}  Nxf1+ {[%clk 0:01:42]} 0-1


[Site "https://www.chess.com"]

[Event "Titled Tuesday Blitz May 16 Early 2023"]
[White "Pap, Gyula"]
[Black "Iskusnyh, Sergei"]
[WhiteFideId "725323"]
[BlackFideId "4120027"]
[WhiteElo "2519"]
[BlackElo "2492"]
[Result "1-0"]
[Round "09"]
[TimeControl "180+2"]
[Date "2023.05.16"]
[WhiteClock "0:00:52"]
[BlackClock "0:00:00"]

1. Nf3 {[%clk 0:02:56]}  d5 {[%clk 0:02:55]} 2. b3 {[%clk 0:02:56]}  Bf5 {[%clk 0:02:54]} 3. Bb2 {[%clk 0:02:56]}  e6 {[%clk 0:02:54]} 4. d3 {[%clk 0:02:56]}  h6 {[%clk 0:02:53]} 5. Nbd2 {[%clk 0:02:56]}  Nf6 {[%clk 0:02:53]} 6. g3 {[%clk 0:02:57]}  Be7 {[%clk 0:02:51]} 7. Bg2 {[%clk 0:02:56]}  O-O {[%clk 0:02:51]} 8. O-O {[%clk 0:02:57]}  a5 {[%clk 0:02:41]} 9. e4 {[%clk 0:02:51]}  Bh7 {[%clk 0:02:39]} 10. Qe2 {[%clk 0:02:41]}  a4 {[%clk 0:02:30]} 11. Kh1 {[%clk 0:02:41]}  c6 {[%clk 0:02:13]} 12. Nh4 {[%clk 0:02:25]}  Na6 {[%clk 0:01:56]} 13. f4 {[%clk 0:02:25]}  a3 {[%clk 0:01:09]} 14. Be5 {[%clk 0:02:09]}  Nc5 {[%clk 0:00:21]} 15. f5 {[%clk 0:02:03]}  exf5 {[%clk 0:00:20]} 16. exf5 {[%clk 0:01:48]}  Re8 {[%clk 0:00:19]} 17. Bd4 {[%clk 0:01:44]}  Bd6 {[%clk 0:00:18]} 18. Qf3 {[%clk 0:01:32]}  Ncd7 {[%clk 0:00:19]} 19. Rae1 {[%clk 0:01:24]}  Qa5 {[%clk 0:00:18]} 20. c3 {[%clk 0:01:16]}  c5 {[%clk 0:00:17]} 21. b4 {[%clk 0:01:16]}  cxb4 {[%clk 0:00:16]} 22. Nb3 {[%clk 0:01:17]}  Qa4 {[%clk 0:00:16]} 23. c4 {[%clk 0:01:08]}  dxc4 {[%clk 0:00:15]} 24. dxc4 {[%clk 0:01:09]}  Ne5 {[%clk 0:00:14]} 25. Qxb7 {[%clk 0:01:07]}  Rad8 {[%clk 0:00:13]} 26. Bxe5 {[%clk 0:00:52]}  Bxe5 {[%clk 0:00:00]} 27. Bc6 {[%clk 0:00:52]} 1-0


[Site "https://www.chess.com"]

[Event "Titled Tuesday Blitz May 16 Early 2023"]
[White "Herrera Ortiz, Miguel"]
[Black "Boyer, Mahel"]
[WhiteFideId "5100550"]
[BlackFideId "45102422"]
[WhiteElo "2623"]
[BlackElo "2439"]
[Result "0-1"]
[Round "09"]
[TimeControl "180+2"]
[Date "2023.05.16"]
[WhiteClock "0:00:35"]
[BlackClock "0:00:11"]

1. e4 {[%clk 0:03:00]}  Nc6 {[%clk 0:02:57]} 2. Nf3 {[%clk 0:03:00]}  d5 {[%clk 0:02:58]} 3. exd5 {[%clk 0:03:00]}  Qxd5 {[%clk 0:02:59]} 4. Nc3 {[%clk 0:03:00]}  Qh5 {[%clk 0:02:59]} 5. h3 {[%clk 0:02:59]}  Nf6 {[%clk 0:02:50]} 6. Be2 {[%clk 0:02:59]}  Bg4 {[%clk 0:02:50]} 7. d3 {[%clk 0:02:55]}  O-O-O {[%clk 0:02:49]} 8. Be3 {[%clk 0:02:55]}  e5 {[%clk 0:02:48]} 9. Nd2 {[%clk 0:02:44]}  Bxe2 {[%clk 0:02:44]} 10. Qxe2 {[%clk 0:02:45]}  Qg6 {[%clk 0:02:44]} 11. O-O {[%clk 0:02:43]}  Nh5 {[%clk 0:02:31]} 12. Qg4+ {[%clk 0:02:39]}  f5 {[%clk 0:02:30]} 13. Qxg6 {[%clk 0:02:37]}  hxg6 {[%clk 0:02:30]} 14. Nb3 {[%clk 0:02:29]}  Be7 {[%clk 0:02:27]} 15. Rad1 {[%clk 0:02:21]}  Bf6 {[%clk 0:02:23]} 16. Rfe1 {[%clk 0:02:17]}  b6 {[%clk 0:02:12]} 17. Ne2 {[%clk 0:02:09]}  g5 {[%clk 0:02:08]} 18. Bc1 {[%clk 0:02:05]}  Nf4 {[%clk 0:01:58]} 19. Nxf4 {[%clk 0:02:01]}  gxf4 {[%clk 0:01:50]} 20. f3 {[%clk 0:02:00]}  Bh4 {[%clk 0:01:46]} 21. Re2 {[%clk 0:01:59]}  Bg3 {[%clk 0:01:47]} 22. Bd2 {[%clk 0:01:58]}  g5 {[%clk 0:01:39]} 23. Bc3 {[%clk 0:01:58]}  g4 {[%clk 0:00:30]} 24. fxg4 {[%clk 0:01:59]}  fxg4 {[%clk 0:00:30]} 25. d4 {[%clk 0:01:59]}  gxh3 {[%clk 0:00:14]} 26. d5 {[%clk 0:01:52]}  hxg2 {[%clk 0:00:14]} 27. Kxg2 {[%clk 0:01:51]}  Ne7 {[%clk 0:00:04]} 28. Bxe5 {[%clk 0:01:48]}  Rh2+ {[%clk 0:00:02]} 29. Kf3 {[%clk 0:01:48]}  Rxe2 {[%clk 0:00:02]} 30. Kxe2 {[%clk 0:01:49]}  Rxd5 {[%clk 0:00:02]} 31. Rxd5 {[%clk 0:01:49]}  Nxd5 {[%clk 0:00:03]} 32. c4 {[%clk 0:01:36]}  Nb4 {[%clk 0:00:02]} 33. a3 {[%clk 0:01:26]}  Nc6 {[%clk 0:00:02]} 34. Bc3 {[%clk 0:01:23]}  a5 {[%clk 0:00:02]} 35. Kf3 {[%clk 0:01:23]}  Kd7 {[%clk 0:00:02]} 36. Nc1 {[%clk 0:01:21]}  Ke6 {[%clk 0:00:02]} 37. Ne2 {[%clk 0:01:19]}  Ne5+ {[%clk 0:00:02]} 38. Ke4 {[%clk 0:01:16]}  Nxc4 {[%clk 0:00:02]} 39. Nxf4+ {[%clk 0:01:15]}  Bxf4 {[%clk 0:00:03]} 40. Kxf4 {[%clk 0:01:16]}  Kd5 {[%clk 0:00:03]} 41. Kf3 {[%clk 0:01:14]}  b5 {[%clk 0:00:02]} 42. Bh8 {[%clk 0:01:10]}  a4 {[%clk 0:00:01]} 43. Bg7 {[%clk 0:01:08]}  c6 {[%clk 0:00:01]} 44. Bf6 {[%clk 0:01:06]}  c5 {[%clk 0:00:02]} 45. Bg7 {[%clk 0:01:06]}  Nd6 {[%clk 0:00:02]} 46. Ke2 {[%clk 0:01:05]}  Kc4 {[%clk 0:00:03]} 47. Kd2 {[%clk 0:01:03]}  Kb3 {[%clk 0:00:03]} 48. Kc1 {[%clk 0:01:04]}  Ne4 {[%clk 0:00:03]} 49. Bf8 {[%clk 0:01:01]}  c4 {[%clk 0:00:04]} 50. Bg7 {[%clk 0:01:00]}  Nf2 {[%clk 0:00:04]} 51. Kb1 {[%clk 0:01:00]}  Nd3 {[%clk 0:00:05]} 52. Bf6 {[%clk 0:01:00]}  Nc5 {[%clk 0:00:05]} 53. Ka1 {[%clk 0:00:57]}  Ne4 {[%clk 0:00:06]} 54. Be5 {[%clk 0:00:57]}  c3 {[%clk 0:00:07]} 55. Kb1 {[%clk 0:00:49]}  Nd2+ {[%clk 0:00:06]} 56. Kc1 {[%clk 0:00:44]}  Ne4 {[%clk 0:00:06]} 57. Kb1 {[%clk 0:00:41]}  Nd2+ {[%clk 0:00:07]} 58. Kc1 {[%clk 0:00:41]}  cxb2+ {[%clk 0:00:08]} 59. Bxb2 {[%clk 0:00:40]}  Nc4 {[%clk 0:00:09]} 60. Bf6 {[%clk 0:00:38]}  Nxa3 {[%clk 0:00:09]} 61. Be7 {[%clk 0:00:38]}  Nc4 {[%clk 0:00:09]} 62. Kb1 {[%clk 0:00:38]}  Ne3 {[%clk 0:00:08]} 63. Ka1 {[%clk 0:00:38]}  Nc2+ {[%clk 0:00:08]} 64. Kb1 {[%clk 0:00:38]}  a3 {[%clk 0:00:09]} 65. Bf6 {[%clk 0:00:38]}  a2+ {[%clk 0:00:09]} 66. Kc1 {[%clk 0:00:38]}  a1=Q+ {[%clk 0:00:10]} 67. Bxa1 {[%clk 0:00:35]}  Nxa1 {[%clk 0:00:11]} 0-1


[Site "https://www.chess.com"]